Workbook

Sheet Sheet1
A1: Fig 1 map color | B1: sites | C1: latitude | D1: longitude | E1: date | F1: Leptasterias counted | G1: abundance rank | H1: Leptasterias/observer hour | I1: observer hours | J1: data used in Fig 2 | K1: previous die-off observed [32] | L1: source
B2: Point St. George | C2: 41.776782 | D2: -124.2511637 | E2: 4 jun 2016 | F2: 91 | G2: >10 | H2: 61 | I2: =F2/H2 -> 1.491803279 | J2: YES | L2: Cohen TC
B3: Battery Point | C3: 41.7440932 | D3: -124.2052835 | E3: 5 Jun 2016 | F3: 132 | G3: >10 | H3: 132 | I3: 1 | J3: YES | L3: Cohen TC
B4: Enderts | C4: 41.7187608 | D4: -124.1471997 | E4: 4 Dec 2010 | F4: 28 | G4: >10 | H4: NA | J4: YES | L4: MARINe
B5: Enderts | C5: 41.7187608 | D5: -124.1471997 | E5: 21 May 2011 | F5: =16+85 -> 101 | G5: >100 | H5: NA | J5: YES | L5: MARINe
B6: Enderts | C6: 41.7187608 | D6: -124.1471997 | E6: 13 Dec 2012 | F6: =25+6 -> 31 | G6: >10 | H6: NA | J6: YES | L6: MARINe
B7: Enderts | C7: 41.7187608 | D7: -124.1471997 | E7: 3 Dec 2013 | F7: =45+23 -> 68 | G7: >10 | H7: NA | J7: YES | L7: MARINe
B8: Enderts | C8: 41.7187608 | D8: -124.1471997 | E8: 14 May 2013 | F8: =95+125 -> 220 | G8: >100 | H8: NA | J8: YES | L8: MARINe
B9: Enderts | C9: 41.7187608 | D9: -124.1471997 | E9: 5 Dec 2014 | F9: =294+674 -> 968 | G9: >500 | H9: NA | J9: YES | L9: MARINe
B10: Enderts | C10: 41.7187608 | D10: -124.1471997 | E10: 17 May 2015 | F10: 890 | G10: >500 | H10: NA | J10: YES | L10: MARINe
B11: Enderts | C11: 41.7187608 | D11: -124.1471997 | E11: 24 Jan 2016 | F11: 1528 | G11: >500 | H11: NA | J11: YES | L11: MARINe
B12: Enderts | C12: 41.7187608 | D12: -124.1471997 | E12: 25 May 2016 | F12: 951 | G12: >500 | H12: NA | L12: MARINe
B13: Damnation Creek | C13: 41.665699 | D13: -124.1409226 | E13: 12 Dec 2012 | F13: 1 | G13: 1 - 10 | H13: NA | J13: YES | L13: MARINe
B14: Damnation Creek | C14: 41.665699 | D14: -124.1409226 | E14: 18 May 2015 | F14: 0 | G14: 0 | H14: NA | J14: YES | L14: MARINe
B15: Damnation Creek | C15: 41.665699 | D15: -124.1409226 | E15: 12 Dec 2016 | F15: 1 | G15: 1 - 10 | H15: NA | J15: YES | L15: MARINe
B16: False Klamath | C16: 41.5989241 | D16: -124.1096716 | E16: 2 Dec 2010 | F16: 47 | G16: >10 | H16: NA | J16: YES | L16: MARINe
B17: False Klamath | C17: 41.5989241 | D17: -124.1096716 | E17: 19 May 2011 | F17: 57 | G17: >10 | H17: NA | J17: YES | L17: MARINe
B18: False Klamath | C18: 41.5989241 | D18: -124.1096716 | E18: 11 Dec 2012 | F18: 36 | G18: >10 | H18: NA | J18: YES | L18: MARINe
B19: False Klamath | C19: 41.5989241 | D19: -124.1096716 | E19: 1 Dec 2013 | F19: 71 | G19: >10 | H19: NA | J19: YES | L19: MARINe
B20: False Klamath | C20: 41.5989241 | D20: -124.1096716 | E20: 16 May 2014 | F20: 84 | G20: >10 | H20: NA | L20: MARINe
B21: False Klamath | C21: 41.5989241 | D21: -124.1096716 | E21: 3 Dec 2014 | F21: 753 | G21: >500 | H21: NA | J21: YES | L21: MARINe
B22: False Klamath | C22: 41.5989241 | D22: -124.1096716 | E22: 16 May 2015 | F22: 1567 | G22: >500 | H22: NA | J22: YES | L22: MARINe
B23: False Klamath | C23: 41.5989241 | D23: -124.1096716 | E23: 21 Jan 2016 | F23: 561 | G23: >500 | H23: NA | J23: YES | L23: MARINe
B24: False Klamath | C24: 41.5989241 | D24: -124.1096716 | E24: 22 May 2016 | F24: 450 | G24: >10 | H24: NA | L24: MARINe
B25: False Klamath | C25: 41.5989241 | D25: -124.1096716 | E25: 7 June 2016 | F25: 49 | G25: >10 | H25: 53.45 | I25: =F25/H25 -> 0.9167446211 | L25: Cohen TC
B26: Rocky Point | C26: 41.138472 | D26: -124.1724372 | E26: 9 June 2016 | F26: 158 | G26: >100 | H26: 316 | I26: 0.5 | J26: YES | L26: Cohen TC
B27: Palmer's Point | C27: 41.1307285 | D27: -124.1615164 | E27: 8 June 2016 | F27: 187 | G27: >100 | H27: 160.29 | I27: 1.166635473 | J27: YES | L27: Cohen TC
B28: Scotty's Point | C28: 41.1007921 | D28: -124.1741904 | E28: 9 Apr 2016 | F28: 889 | G28: >500 | H28: 530 | I28: 1.677358491 | J28: YES | L28: Cohen TC
B29: Bakers | C29: 41.0514724 | D29: -124.1275508 | E29: 10 Apr 2016 | F29: 53 | G29: >10 | H29: 18 | I29: 2.944444444 | J29: YES | L29: Cohen TC
B30: Luffenholtz | C30: 41.0402712 | D30: -124.1225214 | E30: 10 Apr 2016 | F30: 265 | G30: >100 | H30: 140 | I30: 1.892857143 | J30: YES | L30: Cohen TC
B31: Cape Mendocino | C31: 40.4401471 | D31: -124.4182548 | E31: 26 June 2013 | F31: 3 | G31: 1-10 | H31: NA | J31: YES | L31: MARINe
B32: Cape Mendocino | C32: 40.4401471 | D32: -124.4182548 | E32: 18 June 2014 | F32: 12 | G32: >10 | H32: NA | J32: YES | L32: MARINe
B33: Cape Mendocino | C33: 40.4401471 | D33: -124.4182548 | E33: 18 June 2015 | F33: 79 | G33: >10 | H33: NA | J33: YES | L33: MARINe
B34: Cape Mendocino | C34: 40.4401471 | D34: -124.4182548 | E34: 8 June 2016 | F34: 29 | G34: >10 | H34: NA | J34: YES | L34: MARINe
B35: Shelter Cove | C35: 40.0304368 | D35: -124.0818414 | E35: 17 June 2014 | F35: 11 | G35: >10 | H35: NA | J35: YES | L35: MARINe
B36: Shelter Cove | C36: 40.0304368 | D36: -124.0818414 | E36: 7 June 2016 | F36: 2 | G36: 1-10 | H36: NA | J36: YES | L36: MARINe
B37: Kibessillah | C37: 39.604228 | D37: -123.790966 | E37: 14 Jun 2014 | F37: 35 | G37: >10 | H37: NA | J37: YES | L37: MARINe
B38: Kibessillah | C38: 39.604228 | D38: -123.790966 | E38: 6 Jun 2015 | F38: 6 | G38: 1-10 | H38: NA | J38: YES | L38: MARINe
B39: Kibessillah | C39: 39.604228 | D39: -123.790966 | E39: 3 July 2015 | F39: 0 (1 obs. hour) | G39: 0 | H39: 0 | I39: 1 | J39: YES | L39: Cohen TC
B40: Kibessillah | C40: 39.604228 | D40: -123.790966 | E40: 6 Feb 2016 | F40: 0 (2.9 obs. hours) | G40: 0 | H40: 0 | I40: 2.9 | J40: YES | L40: Cohen TC
B41: Kibessillah | C41: 39.604228 | D41: -123.790966 | E41: 6 Jun 2016 | F41: 23 | G41: >10 | H41: NA | J41: YES | L41: MARINe
B42: MacKerricher | C42: 39.4884543 | D42: -123.7900444 | E42: 1 Aug 2015 | F42: 7 | G42: 1 - 10 | H42: 8.4 | I42: =F42/H42 -> 0.8333333333 | J42: YES | L42: Cohen TC
B43: MacKerricher | C43: 39.4884543 | D43: -123.7900444 | E43: 26 Nov 2015 | F43: 4 | G43: 1 - 10 | H43: 2.35 | I43: 1.70212766 | L43: Cohen TC
B44: MacKerricher | C44: 39.4884543 | D44: -123.7900444 | E44: 19 Feb 2016 | F44: 4 | G44: 1 - 10 | H44: 1.77 | I44: 2.259887006 | J44: YES | L44: Cohen TC
B45: MacKerricher | C45: 39.4884543 | D45: -123.7900444 | E45: 4 July 2016 | F45: 2 | G45: 1 - 10 | H45: 1.5 | I45: 1.333333333 | L45: Cohen TC
B46: Glass Beach | C46: 39.4526132 | D46: -123.8156819 | E46: 7 June 2015 | F46: 1 | G46: 1 - 10 | H46: 0.5 | I46: 2 | L46: Cohen TC
B47: Glass Beach | C47: 39.4526132 | D47: -123.8156819 | E47: 30 July 2015 | F47: 6 | G47: 1 - 10 | H47: 7.2 | I47: 0.8333333333 | J47: YES | L47: Cohen TC
B48: Glass Beach | C48: 39.4526132 | D48: -123.8156819 | E48: 12 Nov 2015 | F48: 4 | G48: 1 - 10 | H48: 0.46 | I48: 8.695652174 | L48: Cohen TC
B49: Glass Beach | C49: 39.4526132 | D49: -123.8156819 | E49: 10 Jan 2016 | F49: 7 | G49: 1 - 10 | H49: 4.05 | I49: 1.728395062 | J49: YES | L49: Cohen TC
B50: Glass Beach | C50: 39.4526132 | D50: -123.8156819 | E50: 19 Feb 2016 | F50: 2 | G50: 1 - 10 | H50: 1.6 | I50: =H50/F50 -> 0.8 | L50: Cohen TC
B51: Glass Beach | C51: 39.4526132 | D51: -123.8156819 | E51: 15 Oct 2016 | F51: 0 (0.5 obs. hours) | G51: 0 | H51: 0 | I51: 0.5 | L51: Cohen TC
B52: Glass Beach | C52: 39.4526132 | D52: -123.8156819 | E52: 17 Oct 2016 | F52: 5 | G52: 1 - 10 | H52: =5/110*60 -> 2.727272727 | I52: =F52/H52 -> 1.833333333 | L52: Cohen TC
B53: Belinda Point | C53: 39.3978317 | D53: -123.8213606 | E53: 7 Feb 2016 | F53: 4 | G53: 1 - 10 | H53: 3 | I53: 1.333333333 | L53: Cohen TC
B54: Belinda Point | C54: 39.3978317 | D54: -123.8213606 | E54: 25 Jun 2016 | F54: 14 | G54: >10 | H54: 6.5 | I54: 2.153846154 | J54: YES | L54: Cohen TC
B55: Russian Gulch | C55: 39.3312799 | D55: -123.7791011 | E55: 9 Jan 2016 | F55: 10 | G55: 1 - 10 | H55: 6 | I55: 1.666666667 | J55: YES | L55: Cohen TC
B56: Russian Gulch | C56: 39.3312799 | D56: -123.7791011 | E56: 12 Dec 2016 | F56: 6 | G56: 1 - 10 | H56: =6/30*60 -> 12 | I56: 0.5 | L56: Cohen TC
B57: Mendocino Headlands | C57: 39.3089747 | D57: -123.8084228 | E57: 11 Sep 2015 | F57: 0 (0.5 obs. hours) | G57: 0 | I57: 0.5 | J57: YES | L57: Cohen TC
B58: Mendocino Headlands | C58: 39.3089747 | D58: -123.8084228 | E58: 29 Apr 2016 | F58: 1 | G58: 1 - 10 | H58: 0.95 | I58: =F58/H58 -> 1.052631579 | L58: Cohen TC
B59: Mendocino Headlands | C59: 39.3089747 | D59: -123.8084228 | E59: 9 May 2016 | F59: 0 (0.6 obs. hours) | G59: 0 | H59: 0 | I59: 0.6 | L59: Cohen TC
B60: Mendocino Headlands | C60: 39.3089747 | D60: -123.8084228 | E60: 10 May 2016 | F60: 5 | G60: 1 - 10 | H60: 4.29 | I60: =F60/H60 -> 1.165501166 | J60: YES | L60: Cohen TC
B61: Van Damme | C61: 39.2827288 | D61: -123.7612892 | E61: 17 Jun 2015 | F61: 6 | G61: 1 - 10 | H61: 7.2 | I61: 0.8333333333 | L61: Cohen TC
B62: Van Damme | C62: 39.2827288 | D62: -123.7612892 | E62: 2 Jul 2015 | F62: 4 | G62: 1 - 10 | H62: 0.6666666667 | I62: 6 | L62: Cohen TC
B63: Van Damme | C63: 39.2827288 | D63: -123.7612892 | E63: 13 Nov 2015 | F63: 6 | G63: 1 - 10 | H63: 1.64 | I63: 3.658536585 | L63: Cohen TC
B64: Van Damme | C64: 39.2827288 | D64: -123.7612892 | E64: 25 Nov 2015 | F64: 7 | G64: 1 - 10 | H64: 3.5 | I64: 2 | J64: YES | L64: Cohen TC
B65: Van Damme | C65: 39.2827288 | D65: -123.7612892 | E65: 3 Jul 2016 | F65: 0 (1.1 obs. hours) | G65: 0 | H65: 0 | I65: 1.1 | J65: YES | L65: Cohen TC
B66: Van Damme | C66: 39.2827288 | D66: -123.7612892 | E66: 11 Jun 2017 | F66: 0 (0.8 obs. hours) | G66: 0 | H66: 0 | I66: 0.8 | L66: Cohen TC
B67: Elk | C67: 39.126794 | D67: -123.7202123 | E67: 11 Nov 2015 | F67: 1 | G67: 1 - 10 | H67: 0.181 | I67: 5.5 | J67: YES | L67: Cohen TC
B68: Elk | C68: 39.126794 | D68: -123.7202123 | E68: 8 Jan 2016 | F68: 2 | G68: 1 - 10 | H68: 1.33 | I68: =F68/H68 -> 1.503759398 | L68: Cohen TC
B69: Elk | C69: 39.126794 | D69: -123.7202123 | E69: 9 May 2016 | F69: 3 | G69: 1 - 10 | H69: 5.14 | I69: 0.5836575875 | J69: YES | L69: Cohen TC
B70: Stornetta | C70: 38.93787003 | D70: -123.72880 | E70: 2004 | F70: 12 | G70: >10 | H70: NA | J70: YES | L70: Jurgens et al.
B71: Stornetta | C71: 38.93787003 | D71: -123.72880 | E71: 2007 | F71: 10 | G71: 1 - 10 | H71: NA | L71: Jurgens et al.
B72: Stornetta | C72: 38.93787003 | D72: -123.72880 | E72: 15 Jun 2011 | F72: 8 | G72: 1 - 10 | H72: NA | J72: YES | L72: MARINe
B73: Stornetta | C73: 38.93787003 | D73: -123.72880 | E73: 23 Jun 2013 | F73: 110 | G73: >100 | H73: NA | J73: YES | L73: MARINe
B74: Stornetta | C74: 38.93787003 | D74: -123.72880 | E74: 16 Jun 2015 | F74: 64 | G74: >10 | H74: NA | J74: YES | L74: MARINe
B75: Stornetta | C75: 38.93787003 | D75: -123.72880 | E75: 18 Jun 2015 | F75: 28 | G75: >10 | H75: 37.33333333 | I75: =F75/H75 -> 0.75 | L75: Cohen TC
B76: Stornetta | C76: 38.93787003 | D76: -123.72880 | E76: 3 Jul 2015 | F76: 22 | G76: >10 | H76: 26.4 | I76: 0.8333333333 | L76: Cohen TC
B77: Stornetta | C77: 38.93787003 | D77: -123.72880 | E77: 23 Dec 2015 | F77: 18 | G77: >10 | H77: 0.9473684211 | I77: 19 | L77: Cohen TC
B78: Stornetta | C78: 38.93787003 | D78: -123.72880 | E78: 8 May 2016 | F78: 13 | G78: >10 | H78: 13 | I78: 1 | J78: YES | L78: Cohen TC
B79: Point Arena | C79: 38.911199 | D79: -123.72886 | E79: 2010 | F79: 12 | G79: >10 | H79: NA | J79: YES | L79: Jurgens et al.
B80: Point Arena | C80: 38.911199 | D80: -123.72886 | E80: 18 Jun 2015 | F80: 14 | G80: >10 | H80: 42 | I80: =F80/H80 -> 0.3333333333 | J80: YES | L80: Cohen TC
B81: Point Arena | C81: 38.911199 | D81: -123.72886 | E81: 3 Jul 2015 | F81: 2 | G81: 1 - 10 | H81: 4 | I81: 0.5 | L81: Cohen TC
B82: Point Arena | C82: 38.911199 | D82: -123.72886 | E82: 23 Jul 2016 | F82: 5 | G82: 1 - 10 | H82: 8.571428571 | I82: 0.5833333333 | J82: YES | L82: Cohen TC
B83: Moat Creek | C83: 38.8964776 | D83: -123.6740693 | E83: 2010 | F83: 10 | G83: 1 - 10 | H83: NA | J83: YES | K83: X | L83: Jurgens et al.
B84: Moat Creek | C84: 38.8964776 | D84: -123.6740693 | E84: 28 Jun 2010 | F84: 2 | G84: 1 - 10 | H84: NA | K84: X | L84: MARINe
B85: Moat Creek | C85: 38.8964776 | D85: -123.6740693 | E85: 4 May 2011 | F85: 2 | G85: 1 - 10 | H85: NA | J85: YES | K85: X | L85: MARINe
B86: Moat Creek | C86: 38.8964776 | D86: -123.6740693 | E86: 2012 | F86: 20 | G86: >10 | H86: NA | J86: YES | K86: X | L86: Jurgens
B87: Moat Creek | C87: 38.8964776 | D87: -123.6740693 | E87: 27 Sep 2015 | F87: 0 (1.2 obs. hours) | G87: 0 | H87: 0 | I87: 1.2 | J87: YES | K87: X | L87: Cohen TC
B88: Moat Creek | C88: 38.8964776 | D88: -123.6740693 | E88: 23 Jul 2016 | F88: 0 (0.7 obs. hours) | G88: 0 | H88: 0 | I88: 0.7 | J88: YES | K88: X | L88: Cohen TC
B89: Iversen Saunders Reef | C89: 38.7931688 | D89: -123.7506018 | E89: 2010 | F89: 6 | G89: 1 - 10 | H89: NA | J89: YES | K89: X | L89: Jurgens et al.
B90: Iversen Saunders Reef | C90: 38.7931688 | D90: -123.7506018 | E90: 6 May 2011 | F90: 2 | G90: 1 - 10 | H90: NA | J90: YES | K90: X | L90: MARINe
B91: Iversen Saunders Reef | C91: 38.7931688 | D91: -123.7506018 | E91: 2012 | F91: 2 | G91: 1 - 10 | H91: NA | J91: YES | K91: X | L91: Jurgens et al.
B92: Del Mar Landing | C92: 38.7431362 | D92: -123.515555 | E92: 17 May 2011 | F92: 15 | G92: >10 | H92: NA | J92: YES | K92: X | L92: MARINe
B93: Sea Ranch | C93: 38.7152058 | D93: -123.463208 | E93: 2001 | F93: 28 | G93: >10 | H93: NA | K93: X | L93: Jurgens et al.
B94: Sea Ranch | C94: 38.7152058 | D94: -123.463208 | E94: 2005 | F94: 16 | G94: >10 | H94: NA | J94: YES | K94: X | L94: Jurgens et al.
B95: Sea Ranch | C95: 38.7152058 | D95: -123.463208 | E95: 2010 | F95: 7 | G95: 1 - 10 | H95: NA | J95: YES | K95: X | L95: Jurgens et al.
B96: Sea Ranch | C96: 38.7152058 | D96: -123.463208 | E96: 2012 | F96: 0 | G96: 0 | H96: NA | J96: YES | K96: X | L96: Jurgens et al.
B97: Sea Ranch | C97: 38.7152058 | D97: -123.463208 | E97: 12 Jun 2014 | F97: 3 | G97: 1 - 10 | H97: NA | J97: YES | K97: X | L97: MARINe
B98: Sea Ranch | C98: 38.7152058 | D98: -123.463208 | E98: 15 Jun 2015 | F98: 0 | G98: 0 | H98: NA | J98: YES | K98: X | L98: MARINe
B99: Phillips Gulch | C99: 38.5849289 | D99: -123.3487635 | E99: 2010 | F99: 9 | G99: 1 - 10 | H99: NA | J99: YES | K99: X | L99: Jurgens et al.
B100: Phillips Gulch | C100: 38.5849289 | D100: -123.3487635 | E100: 2012 | F100: 0 | G100: 0 | H100: NA | J100: YES | K100: X | L100: Jurgens et al.
B101: Gerstle Cove | C101: 38.5641932 | D101: -123.3326109 | E101: 2010 | F101: 8 | G101: 1 - 10 | H101: NA | J101: YES | K101: X | L101: Jurgens et al.
B102: Gerstle Cove | C102: 38.5641932 | D102: -123.3326109 | E102: 18 May 2011 | F102: 7 | G102: 1 - 10 | H102: NA | J102: YES | K102: X | L102: MARINe
B103: Windermere Point | C103: 38.5254845 | D103: -123.2765406 | E103: 2010 | F103: 4 | G103: 1 - 10 | H103: NA | K103: X | L103: Jurgens et al.
B104: Windermere Point | C104: 38.5254845 | D104: -123.2765406 | E104: 29 Jun 2010 | F104: 13 | G104: >10 | H104: NA | J104: YES | K104: X | L104: MARINe
B105: Windermere Point | C105: 38.5254845 | D105: -123.2765406 | E105: 8 May 2011 | F105: 9 | G105: 1 - 10 | H105: NA | J105: YES | K105: X | L105: MARINe
B106: Windermere Point | C106: 38.5254845 | D106: -123.2765406 | E106: 2012 | F106: 0 | G106: 0 | H106: NA | J106: YES | K106: X | L106: Jurgens et al.
B107: Marshall Gulch | C107: 38.3696542 | D107: -123.082646 | E107: 21 Jul 2016 | F107: 0 (1.3 obs. hours) | G107: 0 | H107: 0 | I107: 1.3 | J107: YES | K107: X | L107: Cohen TC
B108: Miwok Beach | C108: 38.3604878 | D108: -123.0776459 | E108: 9 May 2016 | F108: 0 (1 obs. hour) | G108: 0 | H108: 0 | I108: 1 | J108: YES | K108: X | L108: Cohen TC
B109: Miwok Beach | C109: 38.3604878 | D109: -123.0776459 | E109: 10 May 2016 | F109: 0 (1.5 obs. hours) | G109: 0 | H109: 0 | I109: 1.5 | K109: X | L109: Cohen TC
B110: Miwok Beach | C110: 38.3604878 | D110: -123.0776459 | E110: 11 May 2016 | F110: 0 (2 obs. hours) | G110: 0 | H110: 0 | I110: 2 | K110: X | L110: Cohen TC
B111: Bodega Marine Reserve | C111: 38.3181454 | D111: -123.0744303 | E111: 2001 | F111: 124 | G111: >100 | H111: NA | J111: YES | K111: X | L111: Jurgens et al.
B112: Bodega Marine Reserve | C112: 38.3181454 | D112: -123.0744303 | E112: 2003 | F112: 65 | G112: >10 | H112: NA | K112: X | L112: Jurgens et al.
B113: Bodega Marine Reserve | C113: 38.3181454 | D113: -123.0744303 | E113: 2004 | F113: 31 | G113: >10 | H113: NA | K113: X | L113: Jurgens et al.
B114: Bodega Marine Reserve | C114: 38.3181454 | D114: -123.0744303 | E114: 2010 | F114: 17 | G114: >10 | H114: NA | J114: YES | K114: X | L114: Jurgens et al.
B115: Bodega Marine Reserve | C115: 38.3181454 | D115: -123.0744303 | E115: 2012 | F115: 0 | G115: 0 | H115: NA | J115: YES | K115: X | L115: Jurgens et al.
B116: Bodega Head | C116: 38.3110444 | D116: -123.0748682 | E116: 2010 | F116: 21 | G116: >10 | H116: NA | J116: YES | K116: X | L116: Jurgens et al.
B117: Bodega Head | C117: 38.3110444 | D117: -123.0748682 | E117: 2012 | F117: 0 | G117: 0 | H117: NA | J117: YES | K117: X | L117: Jurgens et al.
B118: Santa Maria Creek | C118: 38.0316645 | D118: -122.8656213 | E118: 2002 | F118: 10 | G118: 1 - 10 | H118: NA | J118: YES | L118: Jurgens et al.
B119: Santa Maria Creek | C119: 38.0316645 | D119: -122.8656213 | E119: 15 Jul 2014 | F119: 2 | G119: 1 - 10 | H119: NA | J119: YES | L119: MARINe
B120: Chimney Rock | C120: 37.9896664 | D120: -122.9726404 | E120: 2010 | F120: 6 | G120: 1 - 10 | H120: NA | J120: YES | L120: Jurgens et al.
B121: Bolinas Point | C121: 37.9035533 | D121: -122.7359637 | E121: 2002 | F121: 4 | G121: 1 - 10 | H121: NA | L121: Jurgens et al.
B122: Bolinas Point | C122: 37.9035533 | D122: -122.7359637 | E122: 2005 | F122: 7 | G122: 1 - 10 | H122: NA | J122: YES | L122: Jurgens et al.
B123: Bolinas Point | C123: 37.9035533 | D123: -122.7359637 | E123: 2008 | F123: 5 | G123: 1 - 10 | H123: NA | L123: Jurgens et al.
B124: Palomarin | C124: 37.9342931 | D124: -122.7493443 | E124: 2012 | F124: 1 | G124: 1 - 10 | H124: NA | J124: YES | L124: Jurgens et al.
B125: Duxbury Reef | C125: 37.9082079 | D125: -122.7360016 | E125: 2008 | F125: 1 | G125: 1 - 10 | H125: NA | J125: YES | L125: Jurgens et al.
B126: Duxbury Reef | C126: 37.9082079 | D126: -122.7360016 | E126: 2012 | F126: 16 | G126: >10 | H126: NA | J126: YES | L126: Jurgens et al.
B127: Duxbury Reef | C127: 37.9082079 | D127: -122.7360016 | E127: 17 Jul 2014 | F127: 20 | G127: >10 | H127: 5 | I127: 4 | J127: YES | L127: Cohen TC
B128: Duxbury Reef | C128: 37.9082079 | D128: -122.7360016 | E128: 18 Jul 2014 | F128: 16 | G128: >10 | H128: NA | L128: Cohen other
B129: Duxbury Reef | C129: 37.9082079 | D129: -122.7360016 | E129: 27 Oct 2015 | F129: 0 (5 obs. hours) | G129: 0 | H129: 0 | I129: 5 | J129: YES | L129: Cohen TC
B130: Duxbury Reef | C130: 37.9082079 | D130: -122.7360016 | E130: 9 Jan 2016 | F130: 0 (2.7 obs. hours) | G130: 0 | H130: 0 | I130: 2.7 | J130: YES | L130: Cohen TC
B131: Duxbury Reef | C131: 37.9082079 | D131: -122.7360016 | E131: 5 Jun 2016 | F131: 0 (6.7 obs. hours) | G131: 0 | H131: 0 | I131: 6.7 | L131: Cohen TC
B132: Slide Ranch | C132: 37.873302 | D132: -122.5990478 | E132: 17 Aug 1989 | F132: 240 | G132: >100 | H132: NA | L132: MARINe
B133: Slide Ranch | C133: 37.873302 | D133: -122.5990478 | E133: 6 Aug 1990 | F133: 75 | G133: >10 | H133: NA | L133: MARINe
B134: Slide Ranch | C134: 37.873302 | D134: -122.5990478 | E134: 14 Aug 1991 | F134: 68 | G134: >10 | H134: NA | L134: MARINe
B135: Slide Ranch | C135: 37.873302 | D135: -122.5990478 | E135: 20 Apr 1992 | F135: 252 | G135: >10 | H135: NA | L135: MARINe
B136: Slide Ranch | C136: 37.873302 | D136: -122.5990478 | E136: 30 Jul 1992 | F136: 63 | G136: >10 | H136: NA | L136: MARINe
B137: Slide Ranch | C137: 37.873302 | D137: -122.5990478 | E137: 21 Nov 1992 | F137: 9 | G137: 1 - 10 | H137: NA | L137: MARINe
B138: Slide Ranch | C138: 37.873302 | D138: -122.5990478 | E138: 26 May 1994 | F138: 5 | G138: 1 - 10 | H138: NA | L138: MARINe
B139: Slide Ranch | C139: 37.873302 | D139: -122.5990478 | E139: 25 Jun 2001 | F139: 27 | G139: >10 | H139: NA | L139: MARINe
B140: Slide Ranch | C140: 37.873302 | D140: -122.5990478 | E140: 12 Dec 2001 | F140: 132 | G140: >100 | H140: NA | L140: MARINe
B141: Slide Ranch | C141: 37.873302 | D141: -122.5990478 | E141: 25 Jun 2002 | F141: 384 | G141: >100 | H141: NA | L141: MARINe
B142: Slide Ranch | C142: 37.873302 | D142: -122.5990478 | E142: 3 Dec 2002 | F142: 600 | G142: >500 | H142: NA | J142: YES | L142: MARINe
B143: Slide Ranch | C143: 37.873302 | D143: -122.5990478 | E143: 3 Jun 2003 | F143: 320 | G143: >100 | H143: NA | L143: MARINe
B144: Slide Ranch | C144: 37.873302 | D144: -122.5990478 | E144: 20 Jan 2004 | F144: 164 | G144: >10 | H144: NA | L144: MARINe
B145: Slide Ranch | C145: 37.873302 | D145: -122.5990478 | E145: 5 Feb 2005 | F145: 174 | G145: >10 | H145: NA | L145: MARINe
B146: Slide Ranch | C146: 37.873302 | D146: -122.5990478 | E146: 24 Jun 2005 | F146: 447 | G146: >10 | H146: NA | L146: MARINe
B147: Slide Ranch | C147: 37.873302 | D147: -122.5990478 | E147: 5 Jun 2012 | F147: 12 | G147: >10 | H147: NA | J147: YES | L147: MARINe
B148: Slide Ranch | C148: 37.873302 | D148: -122.5990478 | E148: 29 Jan 2014 | F148: 1 | G148: 1 - 10 | H148: NA | L148: MARINe
B149: Slide Ranch | C149: 37.873302 | D149: -122.5990478 | E149: 16 Jun 2014 | F149: 48 | G149: >10 | H149: NA | J149: YES | L149: MARINe
B150: Slide Ranch | C150: 37.873302 | D150: -122.5990478 | E150: 18 Jun 2014 | F150: 30 | G150: >10 | H150: NA | L150: MARINe
B151: Slide Ranch | C151: 37.873302 | D151: -122.5990478 | E151: 18 Jun 2015 | F151: 21 | G151: >10 | H151: NA | L151: Cohen other
B152: Slide Ranch | C152: 37.873302 | D152: -122.5990478 | E152: 30 Jun 2015 | F152: 35 | G152: >10 | H152: 37.33 | I152: =F152/H152 -> 0.9375837128 | J152: YES | L152: Cohen TC
B153: Slide Ranch | C153: 37.873302 | D153: -122.5990478 | E153: 27 Sep 2015 | F153: 30 | G153: >10 | H153: 6.428571429 | I153: 4.666666667 | L153: Cohen TC
B154: Slide Ranch | C154: 37.873302 | D154: -122.5990478 | E154: 28 Sep 2015 | F154: 2 | G154: 1 - 10 | H154: 1.333333333 | I154: 1.5 | L154: Cohen TC
B155: Slide Ranch | C155: 37.873302 | D155: -122.5990478 | E155: 29 Sep 2015 | F155: 20 | G155: >10 | H155: NA | L155: Cohen other
B156: Slide Ranch | C156: 37.873302 | D156: -122.5990478 | E156: 27 Nov 2015 | F156: 13 | G156: >10 | H156: 6.5 | I156: =F156/H156 -> 2 | L156: Cohen TC
B157: Slide Ranch | C157: 37.873302 | D157: -122.5990478 | E157: 10 Jan 2016 | F157: 0 (4.1 obs. hours) | G157: 0 | H157: 0 | I157: 4.1 | J157: YES | L157: Cohen TC
B158: Slide Ranch | C158: 37.873302 | D158: -122.5990478 | E158: 8 Jul 2016 | F158: 0 (4 obs. hours) | G158: 0 | H158: 0 | I158: 4 | L158: Cohen TC
B159: Muir Beach | C159: 37.8664431 | D159: -122.5948647 | E159: 25 Nov 2011 | F159: 4 | G159: 1 - 10 | H159: 4.615384615 | I159: =F159/H159 -> 0.8666666667 | L159: Cohen TC
B160: Muir Beach | C160: 37.8664431 | D160: -122.5948647 | E160: 28 Nov 2011 | F160: 20 | G160: >10 | H160: NA | J160: YES | L160: Cohen other
B161: Muir Beach | C161: 37.8664431 | D161: -122.5948647 | E161: 10 Jan 2012 | F161: 20 | G161: >10 | H161: NA | L161: Cohen other
B162: Muir Beach | C162: 37.8664431 | D162: -122.5948647 | E162: 10 Jan 2012 | F162: 4 | G162: 1 - 10 | H162: 3.2 | I162: =F162/H162 -> 1.25 | L162: Cohen TC
B163: Muir Beach | C163: 37.8664431 | D163: -122.5948647 | E163: 21 Jun 2012 | F163: 125 | G163: >10 | H163: NA | L163: Cohen other
B164: Muir Beach | C164: 37.8664431 | D164: -122.5948647 | E164: 17 Jul 2012 | F164: 135 | G164: >100 | H164: NA | J164: YES | L164: Cohen other
B165: Muir Beach | C165: 37.8664431 | D165: -122.5948647 | E165: 18 Jul 2012 | F165: 125 | G165: >10 | H165: NA | L165: Cohen other
B166: Muir Beach | C166: 37.8664431 | D166: -122.5948647 | E166: 3 Aug 2012 | F166: 120 | G166: >10 | H166: NA | L166: Cohen other
B167: Muir Beach | C167: 37.8664431 | D167: -122.5948647 | E167: 15 Oct 2012 | F167: 96 | G167: >10 | H167: NA | L167: Cohen other
B168: Muir Beach | C168: 37.8664431 | D168: -122.5948647 | E168: 17 Oct 2012 | F168: 86 | G168: >10 | H168: NA | L168: Cohen other
B169: Muir Beach | C169: 37.8664431 | D169: -122.5948647 | E169: 18 Oct 2012 | F169: 27 | G169: >10 | H169: NA | L169: Cohen other
B170: Muir Beach | C170: 37.8664431 | D170: -122.5948647 | E170: 29 Oct 2012 | F170: 104 | G170: >10 | H170: NA | L170: Cohen other
B171: Muir Beach | C171: 37.8664431 | D171: -122.5948647 | E171: 30 Oct 2012 | F171: 78 | G171: >10 | H171: NA | L171: Cohen other
B172: Muir Beach | C172: 37.8664431 | D172: -122.5948647 | E172: 13 Dec 2013 | F172: 34 | G172: >10 | H172: NA | J172: YES | L172: Cohen other
B173: Muir Beach | C173: 37.8664431 | D173: -122.5948647 | E173: 16 Jan 2014 | F173: 40 | G173: >10 | H173: NA | J173: YES | L173: Cohen other
B174: Muir Beach | C174: 37.8664431 | D174: -122.5948647 | E174: 28 Jan 2014 | F174: 11 | G174: >10 | H174: NA | L174: Cohen other
B175: Muir Beach | C175: 37.8664431 | D175: -122.5948647 | E175: 3 Apr 2014 | F175: 15 | G175: >10 | H175: NA | L175: Cohen other
B176: Muir Beach | C176: 37.8664431 | D176: -122.5948647 | E176: 19 May 2014 | F176: 9 | G176: 1 - 10 | H176: NA | L176: Cohen other
B177: Muir Beach | C177: 37.8664431 | D177: -122.5948647 | E177: 21 May 2014 | F177: 11 | G177: >10 | H177: NA | L177: Cohen other
B178: Muir Beach | C178: 37.8664431 | D178: -122.5948647 | E178: 17 Feb 2015 | F178: 7 | G178: >10 | H178: 1.07 | I178: =F178/H178 -> 6.542056075 | J178: YES | L178: Cohen TC
B179: Muir Beach | C179: 37.8664431 | D179: -122.5948647 | E179: 28 Oct 2015 | F179: 0 (2.1 obs. hours) | G179: 0 | H179: 0 | I179: 2.1 | L179: Cohen TC
B180: Muir Beach | C180: 37.8664431 | D180: -122.5948647 | E180: 21 Jun 2016 | F180: 0 (3.1 obs. hours) | G180: 0 | H180: 0 | I180: 3.1 | J180: YES | L180: Cohen TC
B181: Rodeo Beach | C181: 37.8283004 | D181: -122.5414798 | E181: 12 Dec 2011 | F181: 7 | G181: 1 - 10 | H181: 5.6 | I181: =F181/H181 -> 1.25 | J181: YES | L181: Cohen TC
B182: Rodeo Beach | C182: 37.8283004 | D182: -122.5414798 | E182: 13 Jun 2014 | F182: 30 | G182: >10 | H182: NA | J182: YES | L182: Cohen other
B183: Rodeo Beach | C183: 37.8283004 | D183: -122.5414798 | E183: 16 Feb 2015 | F183: 0 (4.7 obs. hours) | G183: 0 | H183: 0 | I183: 4.7 | J183: YES | L183: Cohen TC
B184: Rodeo Beach | C184: 37.8283004 | D184: -122.5414798 | E184: 18 Aug 2016 | F184: 0 (0.7 obs. hours) | G184: 0 | H184: 0 | I184: 0.7 | J184: YES | L184: Cohen TC
B185: Pt Bonita | C185: 37.8156098 | D185: -122.5317174 | E185: 8 Jan 2001 | F185: 2 | G185: 1 - 10 | H185: NA | L185: MARINe
B186: Pt Bonita | C186: 37.8156098 | D186: -122.5317174 | E186: 26 Jan 2002 | F186: 116 | G186: >100 | H186: NA | L186: MARINe
B187: Pt Bonita | C187: 37.8156098 | D187: -122.5317174 | E187: 28 Jan 2002 | F187: 33 | G187: >10 | H187: NA | L187: MARINe
B188: Pt Bonita | C188: 37.8156098 | D188: -122.5317174 | E188: 26 Jun 2002 | F188: 110 | G188: >100 | H188: NA | L188: MARINe
B189: Pt Bonita | C189: 37.8156098 | D189: -122.5317174 | E189: 30 Jan 2003 | F189: 644 | G189: >500 | H189: NA | J189: YES | L189: MARINe
B190: Pt Bonita | C190: 37.8156098 | D190: -122.5317174 | E190: 2 Jun 2003 | F190: 240 | G190: >100 | H190: NA | L190: MARINe
B191: Pt Bonita | C191: 37.8156098 | D191: -122.5317174 | E191: 22 Jan 2004 | F191: 260 | G191: >100 | H191: NA | L191: MARINe
B192: Pt Bonita | C192: 37.8156098 | D192: -122.5317174 | E192: 7 Jun 2004 | F192: 104 | G192: >100 | H192: NA | L192: MARINe
B193: Pt Bonita | C193: 37.8156098 | D193: -122.5317174 | E193: 6 Feb 2005 | F193: 263 | G193: >101 | H193: NA | L193: MARINe
B194: Pt Bonita | C194: 37.8156098 | D194: -122.5317174 | E194: 26 Jun 2005 | F194: 29 | G194: >10 | H194: NA | L194: MARINe
B195: Pt Bonita | C195: 37.8156098 | D195: -122.5317174 | E195: 13 Jul 2010 | F195: 191 | G195: >100 | H195: NA | J195: YES | L195: MARINe
B196: Pt Bonita | C196: 37.8156098 | D196: -122.5317174 | E196: 3 Jun 2011 | F196: 18 | G196: >10 | H196: NA | J196: YES | L196: MARINe
B197: Pt Bonita | C197: 37.8156098 | D197: -122.5317174 | E197: 28 Jan 2014 | F197: 48 | G197: >10 | H197: NA | J197: YES | L197: MARINe
B198: Pt Bonita | C198: 37.8156098 | D198: -122.5317174 | E198: 27 Mar 2014 | F198: 20 | G198: >10 | H198: NA | L198: Cohen other
B199: Pt Bonita | C199: 37.8156098 | D199: -122.5317174 | E199: 17 Jun 2015 | F199: 7 | G199: 1 - 10 | H199: 1.346153846 | I199: =F199/H199 -> 5.2 | J199: YES | L199: Cohen TC
B200: Pt Bonita | C200: 37.8156098 | D200: -122.5317174 | E200: 24 Nov 2015 | F200: 0 (2.4 obs. hours) | G200: 0 | H200: 0 | I200: 2.4 | L200: Cohen TC
... 125 more rows
